[Event "January 9 Early 2024"]
[Site "https://www.chess.com"]
[Date "2024.01.11"]
[Round "5"]
[White "Klukin, Kirill"]
[Black "Rietze, Clemens, Dr."]
[Result "1-0"]
[Board "237"]
[TimeControl "180+1"]
[WhiteFideId "24199273"]
[BlackFideId "24620351"]
[WhiteElo "2819"]
[BlackElo "2518"]
[WhiteTeam "RUS"]
[BlackTeam "GER"]
[WhiteClock "0:00:48"]
[BlackClock "0:00:06"]

1. f4 {[%clk 0:03:00]}  d5 {[%clk 0:02:56]} 2. Nf3 {[%clk 0:03:00]}  g6 {[%clk 0:02:55]} 3. g3 {[%clk 0:03:00]}  Bg7 {[%clk 0:02:56]} 4. Bg2 {[%clk 0:03:01]}  Nf6 {[%clk 0:02:56]} 5. O-O {[%clk 0:03:02]}  O-O {[%clk 0:02:56]} 6. d3 {[%clk 0:03:02]}  c5 {[%clk 0:02:56]} 7. Nc3 {[%clk 0:03:03]}  d4 {[%clk 0:02:52]} 8. Na4 {[%clk 0:03:02]}  Qc7 {[%clk 0:02:45]} 9. c4 {[%clk 0:03:01]}  dxc3 {[%clk 0:02:37]} 10. Nxc3 {[%clk 0:02:57]}  Nc6 {[%clk 0:02:35]} 11. Bd2 {[%clk 0:02:53]}  b6 {[%clk 0:02:33]} 12. Rc1 {[%clk 0:02:53]}  Bb7 {[%clk 0:02:33]} 13. a3 {[%clk 0:02:53]}  Qd7 {[%clk 0:02:21]} 14. Qa4 {[%clk 0:02:38]}  Na5 {[%clk 0:02:05]} 15. Ne5 {[%clk 0:02:15]}  Qxa4 {[%clk 0:01:55]} 16. Nxa4 {[%clk 0:02:16]}  Bxg2 {[%clk 0:01:54]} 17. Kxg2 {[%clk 0:02:17]}  Nb3 {[%clk 0:01:52]} 18. Rcd1 {[%clk 0:02:16]}  Nxd2 {[%clk 0:01:33]} 19. Rxd2 {[%clk 0:02:16]}  Nd5 {[%clk 0:01:33]} 20. Kf3 {[%clk 0:02:04]}  Rac8 {[%clk 0:01:27]} 21. Nc3 {[%clk 0:02:01]}  Rfd8 {[%clk 0:01:23]} 22. Nxd5 {[%clk 0:01:58]}  Rxd5 {[%clk 0:01:24]} 23. Nc4 {[%clk 0:01:59]}  h5 {[%clk 0:01:12]} 24. Rc1 {[%clk 0:01:59]}  Rcd8 {[%clk 0:01:07]} 25. b4 {[%clk 0:01:45]}  cxb4 {[%clk 0:01:05]} 26. axb4 {[%clk 0:01:46]}  Rb5 {[%clk 0:01:05]} 27. Ra2 {[%clk 0:01:40]}  Rd7 {[%clk 0:00:59]} 28. Ra4 {[%clk 0:01:35]}  Rd4 {[%clk 0:00:42]} 29. Rxa7 {[%clk 0:01:27]}  Rxb4 {[%clk 0:00:41]} 30. Rxe7 {[%clk 0:01:27]}  Bf6 {[%clk 0:00:39]} 31. Rb7 {[%clk 0:01:24]}  b5 {[%clk 0:00:28]} 32. Ne3 {[%clk 0:01:24]}  Rd8 {[%clk 0:00:14]} 33. Rcc7 {[%clk 0:01:23]}  Rb2 {[%clk 0:00:13]} 34. Rxf7 {[%clk 0:01:21]}  Bd4 {[%clk 0:00:13]} 35. Nd5 {[%clk 0:01:15]}  Re8 {[%clk 0:00:11]} 36. Rfe7 {[%clk 0:01:06]}  Kf8 {[%clk 0:00:10]} 37. Rxe8+ {[%clk 0:01:05]}  Kxe8 {[%clk 0:00:10]} 38. Rxb5 {[%clk 0:01:05]}  Ra2 {[%clk 0:00:09]} 39. Rb4 {[%clk 0:01:02]}  Bc5 {[%clk 0:00:09]} 40. Rc4 {[%clk 0:01:02]}  Bd6 {[%clk 0:00:09]} 41. Nf6+ {[%clk 0:01:01]}  Kf7 {[%clk 0:00:08]} 42. Ne4 {[%clk 0:01:01]}  Bf8 {[%clk 0:00:08]} 43. Rc7+ {[%clk 0:01:01]}  Ke6 {[%clk 0:00:08]} 44. h3 {[%clk 0:00:58]}  Ra1 {[%clk 0:00:08]} 45. Rc6+ {[%clk 0:00:57]}  Kf7 {[%clk 0:00:08]} 46. Ng5+ {[%clk 0:00:57]}  Ke8 {[%clk 0:00:06]} 47. Rxg6 {[%clk 0:00:57]}  Rf1+ {[%clk 0:00:06]} 48. Ke4 {[%clk 0:00:57]}  Rg1 {[%clk 0:00:06]} 49. Nf3 {[%clk 0:00:55]}  Rg2 {[%clk 0:00:06]} 50. e3 {[%clk 0:00:56]}  Bc5 {[%clk 0:00:06]} 51. d4 {[%clk 0:00:56]}  Ba3 {[%clk 0:00:06]} 52. g4 {[%clk 0:00:54]}  hxg4 {[%clk 0:00:05]} 53. hxg4 {[%clk 0:00:55]}  Re2 {[%clk 0:00:06]} 54. Kd3 {[%clk 0:00:52]}  Rf2 {[%clk 0:00:06]} 55. Ne5 {[%clk 0:00:52]}  Bc1 {[%clk 0:00:06]} 56. Re6+ {[%clk 0:00:52]}  Kd8 {[%clk 0:00:06]} 57. Rc6 {[%clk 0:00:53]}  Rf1 {[%clk 0:00:05]} 58. g5 {[%clk 0:00:53]}  Re1 {[%clk 0:00:05]} 59. Ng4 {[%clk 0:00:51]}  Rg1 {[%clk 0:00:04]} 60. Ke4 {[%clk 0:00:51]}  Bd2 {[%clk 0:00:02]} 61. Kf5 {[%clk 0:00:50]}  Re1 {[%clk 0:00:02]} 62. g6 {[%clk 0:00:50]}  Bxe3 {[%clk 0:00:02]} 63. g7 {[%clk 0:00:50]}  Bxd4 {[%clk 0:00:02]} 64. g8=Q+ {[%clk 0:00:51]}  Kd7 {[%clk 0:00:03]} 65. Qd5+ {[%clk 0:00:51]}  Ke7 {[%clk 0:00:03]} 66. Re6+ {[%clk 0:00:51]}  Rxe6 {[%clk 0:00:03]} 67. Qxe6+ {[%clk 0:00:52]}  Kd8 {[%clk 0:00:04]} 68. Qf7 {[%clk 0:00:52]}  Bc5 {[%clk 0:00:03]} 69. Ke6 {[%clk 0:00:53]}  Kc8 {[%clk 0:00:04]} 70. Ne5 {[%clk 0:00:52]}  Kb8 {[%clk 0:00:05]} 71. Nc6+ {[%clk 0:00:51]}  Ka8 {[%clk 0:00:06]} 72. Na5 {[%clk 0:00:48]} 1-0

[Event "January 9 Early 2024"]
[Site "https://www.chess.com"]
[Date "2024.01.11"]
[Round "5"]
[White "Costachi, Mihnea"]
[Black "Pranav, V"]
[Result "0-1"]
[Board "238"]
[TimeControl "180+1"]
[WhiteFideId "1217518"]
[BlackFideId "25060783"]
[WhiteElo "2868"]
[BlackElo "3042"]
[WhiteTeam "ROU"]
[BlackTeam "IND"]
[WhiteClock "0:00:01"]
[BlackClock "0:00:03"]

1. Nc3 {[%clk 0:03:00]}  e5 {[%clk 0:02:59]} 2. e4 {[%clk 0:03:00]}  Nf6 {[%clk 0:02:59]} 3. Bc4 {[%clk 0:03:01]}  Nc6 {[%clk 0:02:58]} 4. d3 {[%clk 0:03:01]}  Na5 {[%clk 0:02:58]} 5. Bb3 {[%clk 0:02:59]}  Nxb3 {[%clk 0:02:57]} 6. axb3 {[%clk 0:03:00]}  Bc5 {[%clk 0:02:57]} 7. Nf3 {[%clk 0:02:58]}  d6 {[%clk 0:02:57]} 8. Be3 {[%clk 0:02:58]}  Bxe3 {[%clk 0:02:47]} 9. fxe3 {[%clk 0:02:58]}  h6 {[%clk 0:02:46]} 10. O-O {[%clk 0:02:58]}  Be6 {[%clk 0:02:45]} 11. d4 {[%clk 0:02:53]}  Nd7 {[%clk 0:02:33]} 12. Qe1 {[%clk 0:02:48]}  g5 {[%clk 0:02:18]} 13. Qg3 {[%clk 0:02:42]}  f6 {[%clk 0:02:18]} 14. Nd2 {[%clk 0:02:00]}  O-O {[%clk 0:01:47]} 15. Rf3 {[%clk 0:01:47]}  Qe7 {[%clk 0:01:45]} 16. Raf1 {[%clk 0:01:48]}  c6 {[%clk 0:01:43]} 17. h4 {[%clk 0:01:29]}  Kg7 {[%clk 0:01:36]} 18. Nc4 {[%clk 0:01:25]}  Bg8 {[%clk 0:01:27]} 19. hxg5 {[%clk 0:01:16]}  hxg5 {[%clk 0:01:26]} 20. dxe5 {[%clk 0:01:09]}  dxe5 {[%clk 0:01:10]} 21. Rd1 {[%clk 0:00:48]}  Nc5 {[%clk 0:00:44]} 22. Nd6 {[%clk 0:00:46]}  Bh7 {[%clk 0:00:44]} 23. b4 {[%clk 0:00:41]}  Na6 {[%clk 0:00:44]} 24. b5 {[%clk 0:00:28]}  Nc7 {[%clk 0:00:42]} 25. bxc6 {[%clk 0:00:28]}  bxc6 {[%clk 0:00:43]} 26. Qg4 {[%clk 0:00:19]}  Rad8 {[%clk 0:00:41]} 27. Nf5+ {[%clk 0:00:19]}  Bxf5 {[%clk 0:00:41]} 28. Qxf5 {[%clk 0:00:20]}  Rxd1+ {[%clk 0:00:28]} 29. Nxd1 {[%clk 0:00:21]}  Qe6 {[%clk 0:00:28]} 30. Rf2 {[%clk 0:00:17]}  Rd8 {[%clk 0:00:23]} 31. Nc3 {[%clk 0:00:18]}  a5 {[%clk 0:00:15]} 32. g4 {[%clk 0:00:17]}  Qxf5 {[%clk 0:00:12]} 33. exf5 {[%clk 0:00:17]}  Na6 {[%clk 0:00:10]} 34. Ne4 {[%clk 0:00:15]}  Nb4 {[%clk 0:00:09]} 35. c3 {[%clk 0:00:15]}  Rd1+ {[%clk 0:00:09]} 36. Kg2 {[%clk 0:00:12]}  Nd5 {[%clk 0:00:09]} 37. Kf3 {[%clk 0:00:07]}  a4 {[%clk 0:00:09]} 38. Nc5 {[%clk 0:00:07]}  Ra1 {[%clk 0:00:05]} 39. c4 {[%clk 0:00:06]}  Nb6 {[%clk 0:00:05]} 40. Rd2 {[%clk 0:00:06]}  Kf7 {[%clk 0:00:04]} 41. Ne6 {[%clk 0:00:05]}  Ke7 {[%clk 0:00:04]} 42. Nc5 {[%clk 0:00:05]}  Rc1 {[%clk 0:00:03]} 43. Ne6 {[%clk 0:00:03]}  Nxc4 {[%clk 0:00:02]} 44. Rh2 {[%clk 0:00:04]}  Kd6 {[%clk 0:00:02]} 45. Rh8 {[%clk 0:00:04]}  e4+ {[%clk 0:00:02]} 46. Kxe4 {[%clk 0:00:01]}  Rg1 {[%clk 0:00:03]} 0-1

[Event "January 9 Early 2024"]
[Site "https://www.chess.com"]
[Date "2024.01.11"]
[Round "5"]
[White "Murzin, Volodar"]
[Black "Bluebaum, Matthias"]
[Result "0-1"]
[Board "239"]
[TimeControl "180+1"]
[WhiteFideId "44155573"]
[BlackFideId "24651516"]
[WhiteElo "2939"]
[BlackElo "3092"]
[WhiteTeam "FID"]
[BlackTeam "GER"]
[WhiteClock "0:00:05"]
[BlackClock "0:00:11"]

1. d4 {[%clk 0:03:00]}  d5 {[%clk 0:03:00]} 2. Nf3 {[%clk 0:03:01]}  e6 {[%clk 0:03:00]} 3. Bf4 {[%clk 0:03:01]}  c5 {[%clk 0:03:00]} 4. e3 {[%clk 0:03:01]}  Nc6 {[%clk 0:03:01]} 5. Nbd2 {[%clk 0:03:01]}  Bd6 {[%clk 0:03:01]} 6. c3 {[%clk 0:02:59]}  Bxf4 {[%clk 0:03:01]} 7. exf4 {[%clk 0:02:59]}  cxd4 {[%clk 0:03:02]} 8. Nxd4 {[%clk 0:02:58]}  Nxd4 {[%clk 0:03:01]} 9. cxd4 {[%clk 0:02:59]}  Qb6 {[%clk 0:02:59]} 10. Nb3 {[%clk 0:02:53]}  a5 {[%clk 0:02:57]} 11. Qd2 {[%clk 0:02:51]}  Nf6 {[%clk 0:02:54]} 12. Bd3 {[%clk 0:02:36]}  O-O {[%clk 0:02:46]} 13. Rc1 {[%clk 0:02:30]}  Bd7 {[%clk 0:02:44]} 14. Nc5 {[%clk 0:02:30]}  Bb5 {[%clk 0:02:42]} 15. Bxb5 {[%clk 0:02:04]}  Qxb5 {[%clk 0:02:43]} 16. a4 {[%clk 0:02:04]}  Qb6 {[%clk 0:02:38]} 17. O-O {[%clk 0:01:56]}  Rfc8 {[%clk 0:02:37]} 18. Qd3 {[%clk 0:01:26]}  Qb4 {[%clk 0:02:29]} 19. Rc3 {[%clk 0:01:08]}  b6 {[%clk 0:02:12]} 20. Rb3 {[%clk 0:00:56]}  Qc4 {[%clk 0:02:11]} 21. Qxc4 {[%clk 0:00:39]}  dxc4 {[%clk 0:02:12]} 22. Rxb6 {[%clk 0:00:39]}  Nd5 {[%clk 0:02:09]} 23. Rb7 {[%clk 0:00:29]}  Nxf4 {[%clk 0:02:07]} 24. Rd1 {[%clk 0:00:27]}  Rab8 {[%clk 0:01:49]} 25. Kf1 {[%clk 0:00:21]}  g6 {[%clk 0:01:44]} 26. g3 {[%clk 0:00:20]}  Nd5 {[%clk 0:01:45]} 27. Rc1 {[%clk 0:00:19]}  Nb6 {[%clk 0:01:44]} 28. Rxb8 {[%clk 0:00:16]}  Rxb8 {[%clk 0:01:45]} 29. Ke2 {[%clk 0:00:16]}  Rc8 {[%clk 0:01:40]} 30. f4 {[%clk 0:00:15]}  h5 {[%clk 0:01:35]} 31. Ke3 {[%clk 0:00:13]}  Kf8 {[%clk 0:01:33]} 32. Ke4 {[%clk 0:00:14]}  Ke7 {[%clk 0:01:33]} 33. Rc2 {[%clk 0:00:13]}  Rc7 {[%clk 0:01:29]} 34. Kf3 {[%clk 0:00:12]}  Rc8 {[%clk 0:01:29]} 35. Ke4 {[%clk 0:00:12]}  Rb8 {[%clk 0:01:23]} 36. b3 {[%clk 0:00:13]}  cxb3 {[%clk 0:01:04]} 37. Nxb3 {[%clk 0:00:14]}  Nxa4 {[%clk 0:01:04]} 38. Nxa5 {[%clk 0:00:14]}  Kf6 {[%clk 0:01:05]} 39. Kf3 {[%clk 0:00:13]}  Rb5 {[%clk 0:01:01]} 40. Nc6 {[%clk 0:00:13]}  Rb3+ {[%clk 0:01:01]} 41. Kg2 {[%clk 0:00:13]}  Nc3 {[%clk 0:01:01]} 42. Ne5 {[%clk 0:00:14]}  Nd5 {[%clk 0:01:02]} 43. Kf2 {[%clk 0:00:11]}  h4 {[%clk 0:01:01]} 44. Ra2 {[%clk 0:00:11]}  hxg3+ {[%clk 0:00:53]} 45. hxg3 {[%clk 0:00:11]}  Rb7 {[%clk 0:00:45]} 46. Rc2 {[%clk 0:00:11]}  Kf5 {[%clk 0:00:44]} 47. Ra2 {[%clk 0:00:09]}  f6 {[%clk 0:00:42]} 48. Nc4 {[%clk 0:00:10]}  Rb3 {[%clk 0:00:39]} 49. Re2 {[%clk 0:00:10]}  Kg4 {[%clk 0:00:20]} 50. Rxe6 {[%clk 0:00:10]}  Rxg3 {[%clk 0:00:21]} 51. Ke1 {[%clk 0:00:10]}  Kf5 {[%clk 0:00:19]} 52. Ra6 {[%clk 0:00:07]}  Nxf4 {[%clk 0:00:19]} 53. Kf2 {[%clk 0:00:07]}  Rc3 {[%clk 0:00:18]} 54. Nd6+ {[%clk 0:00:07]}  Kg4 {[%clk 0:00:16]} 55. Ne4 {[%clk 0:00:08]}  Rc2+ {[%clk 0:00:12]} 56. Kf1 {[%clk 0:00:08]}  f5 {[%clk 0:00:11]} 57. Nf2+ {[%clk 0:00:08]}  Kg5 {[%clk 0:00:11]} 58. Ra3 {[%clk 0:00:05]}  Rc1+ {[%clk 0:00:11]} 0-1

[Event "January 9 Early 2024"]
[Site "https://www.chess.com"]
[Date "2024.01.11"]
[Round "5"]
[White "Iskusnyh, Sergei"]
[Black "Gholami Orimi, Mahdi"]
[Result "1-0"]
[Board "240"]
[TimeControl "180+1"]
[WhiteFideId "4120027"]
[BlackFideId "12558486"]
[WhiteElo "2685"]
[BlackElo "2866"]
[WhiteTeam "RUS"]
[BlackTeam "IRI"]
[WhiteClock "0:00:20"]
[BlackClock "0:00:11"]

1. d4 {[%clk 0:03:00]}  b6 {[%clk 0:02:54]} 2. c4 {[%clk 0:02:46]}  Bb7 {[%clk 0:02:55]} 3. Nc3 {[%clk 0:02:46]}  e6 {[%clk 0:02:55]} 4. Qc2 {[%clk 0:02:46]}  f5 {[%clk 0:02:53]} 5. Nf3 {[%clk 0:02:43]}  Bb4 {[%clk 0:02:53]} 6. Bd2 {[%clk 0:02:42]}  Nf6 {[%clk 0:02:52]} 7. g3 {[%clk 0:02:41]}  O-O {[%clk 0:02:52]} 8. Bg2 {[%clk 0:02:41]}  Qe8 {[%clk 0:02:51]} 9. O-O {[%clk 0:02:40]}  d6 {[%clk 0:02:48]} 10. d5 {[%clk 0:02:08]}  Bxc3 {[%clk 0:02:30]} 11. Bxc3 {[%clk 0:02:06]}  Ne4 {[%clk 0:02:29]} 12. Nd4 {[%clk 0:02:02]}  exd5 {[%clk 0:02:26]} 13. cxd5 {[%clk 0:01:54]}  Bxd5 {[%clk 0:02:27]} 14. Rad1 {[%clk 0:01:29]}  Bb7 {[%clk 0:02:13]} 15. Qb3+ {[%clk 0:01:18]}  Kh8 {[%clk 0:02:06]} 16. Ne6 {[%clk 0:01:15]}  Rf7 {[%clk 0:02:06]} 17. Nd8 {[%clk 0:01:12]}  Re7 {[%clk 0:01:28]} 18. Nxb7 {[%clk 0:01:11]}  Nd7 {[%clk 0:01:18]} 19. Bxe4 {[%clk 0:01:08]}  Rxe4 {[%clk 0:01:11]} 20. Rxd6 {[%clk 0:01:00]}  cxd6 {[%clk 0:01:05]} 21. Nxd6 {[%clk 0:00:59]}  Qe6 {[%clk 0:00:28]} 22. Nxe4 {[%clk 0:00:56]}  Qxb3 {[%clk 0:00:27]} 23. axb3 {[%clk 0:00:54]}  fxe4 {[%clk 0:00:28]} 24. Rd1 {[%clk 0:00:54]}  Nc5 {[%clk 0:00:28]} 25. b4 {[%clk 0:00:53]}  Na4 {[%clk 0:00:29]} 26. Rd7 {[%clk 0:00:53]}  Nxc3 {[%clk 0:00:29]} 27. bxc3 {[%clk 0:00:53]}  h6 {[%clk 0:00:28]} 28. b5 {[%clk 0:00:50]}  a5 {[%clk 0:00:25]} 29. bxa6 {[%clk 0:00:49]}  Rxa6 {[%clk 0:00:25]} 30. Rd4 {[%clk 0:00:44]}  e3 {[%clk 0:00:22]} 31. f4 {[%clk 0:00:36]}  Ra2 {[%clk 0:00:20]} 32. Kf1 {[%clk 0:00:35]}  Rd2 {[%clk 0:00:17]} 33. Rd3 {[%clk 0:00:32]}  Kh7 {[%clk 0:00:14]} 34. Rxe3 {[%clk 0:00:32]}  Rc2 {[%clk 0:00:14]} 35. Kf2 {[%clk 0:00:32]}  Kg6 {[%clk 0:00:14]} 36. Re6+ {[%clk 0:00:31]}  Kf5 {[%clk 0:00:14]} 37. Rxb6 {[%clk 0:00:31]}  Rxc3 {[%clk 0:00:14]} 38. h3 {[%clk 0:00:31]}  g5 {[%clk 0:00:15]} 39. Rb5+ {[%clk 0:00:27]}  Kf6 {[%clk 0:00:13]} 40. e3 {[%clk 0:00:25]}  Rc1 {[%clk 0:00:09]} 41. Kf3 {[%clk 0:00:25]}  Kg6 {[%clk 0:00:08]} 42. Rb6+ {[%clk 0:00:24]}  Kg7 {[%clk 0:00:08]} 43. e4 {[%clk 0:00:25]}  Rh1 {[%clk 0:00:07]} 44. Kg4 {[%clk 0:00:24]}  gxf4 {[%clk 0:00:07]} 45. gxf4 {[%clk 0:00:24]}  h5+ {[%clk 0:00:08]} 46. Kxh5 {[%clk 0:00:24]}  Rxh3+ {[%clk 0:00:08]} 47. Kg5 {[%clk 0:00:24]}  Rg3+ {[%clk 0:00:08]} 48. Kf5 {[%clk 0:00:24]}  Rh3 {[%clk 0:00:09]} 49. Rb7+ {[%clk 0:00:24]}  Kf8 {[%clk 0:00:10]} 50. e5 {[%clk 0:00:24]}  Rh5+ {[%clk 0:00:10]} 51. Kg6 {[%clk 0:00:22]}  Rh1 {[%clk 0:00:11]} 52. f5 {[%clk 0:00:22]}  Ra1 {[%clk 0:00:11]} 53. Rb8+ {[%clk 0:00:21]}  Ke7 {[%clk 0:00:11]} 54. f6+ {[%clk 0:00:21]}  Kd7 {[%clk 0:00:12]} 55. f7 {[%clk 0:00:21]}  Rg1+ {[%clk 0:00:12]} 56. Kh5 {[%clk 0:00:20]}  Rh1+ {[%clk 0:00:13]} 57. Kg4 {[%clk 0:00:20]}  Rg1+ {[%clk 0:00:14]} 58. Kh3 {[%clk 0:00:20]}  Rh1+ {[%clk 0:00:11]} 59. Kg2 {[%clk 0:00:20]} 1-0

[Event "January 9 Early 2024"]
[Site "https://www.chess.com"]
[Date "2024.01.11"]
[Round "5"]
[White "Ranaldi, Lucas"]
[Black "Tikhonov, Viacheslav"]
[Result "1-0"]
[Board "241"]
[TimeControl "180+1"]
[WhiteFideId "1519484"]
[BlackFideId "44196407"]
[WhiteElo "2690"]
[BlackElo "2537"]
[WhiteTeam "NOR"]
[BlackTeam "RUS"]
[WhiteClock "0:00:10"]
[BlackClock "0:00:10"]

1. Nf3 {[%clk 0:03:00]}  g6 {[%clk 0:02:59]} 2. d4 {[%clk 0:02:56]}  Nf6 {[%clk 0:02:59]} 3. c4 {[%clk 0:02:52]}  Bg7 {[%clk 0:02:59]} 4. Nc3 {[%clk 0:02:53]}  d5 {[%clk 0:02:59]} 5. Bg5 {[%clk 0:02:52]}  Ne4 {[%clk 0:02:59]} 6. Bh4 {[%clk 0:02:53]}  c5 {[%clk 0:02:34]} 7. cxd5 {[%clk 0:02:51]}  Qa5 {[%clk 0:02:32]} 8. Qa4+ {[%clk 0:01:18]}  Qxa4 {[%clk 0:02:31]} 9. Nxa4 {[%clk 0:01:19]}  cxd4 {[%clk 0:02:25]} 10. Rd1 {[%clk 0:00:44]}  Bd7 {[%clk 0:02:17]} 11. b3 {[%clk 0:00:44]}  b5 {[%clk 0:01:22]} 12. Nb2 {[%clk 0:00:44]}  Nc3 {[%clk 0:01:22]} 13. Rd2 {[%clk 0:00:39]}  Nxd5 {[%clk 0:01:16]} 14. Nxd4 {[%clk 0:00:36]}  a6 {[%clk 0:00:43]} 15. e3 {[%clk 0:00:35]}  e6 {[%clk 0:00:33]} 16. Nd3 {[%clk 0:00:35]}  Nc6 {[%clk 0:00:28]} 17. Nc5 {[%clk 0:00:33]}  Nxd4 {[%clk 0:00:27]} 18. exd4 {[%clk 0:00:34]}  Rc8 {[%clk 0:00:18]} 19. Be2 {[%clk 0:00:14]}  Nb4 {[%clk 0:00:12]} 20. O-O {[%clk 0:00:13]}  Bc6 {[%clk 0:00:11]} 21. a3 {[%clk 0:00:07]}  Nd5 {[%clk 0:00:11]} 22. Ne4 {[%clk 0:00:08]}  O-O {[%clk 0:00:06]} 23. Nd6 {[%clk 0:00:07]}  Ra8 {[%clk 0:00:03]} 24. Bf3 {[%clk 0:00:07]}  f6 {[%clk 0:00:02]} 25. Rc2 {[%clk 0:00:07]}  Bd7 {[%clk 0:00:01]} 26. Nb7 {[%clk 0:00:05]}  Rfc8 {[%clk 0:00:01]} 27. Nc5 {[%clk 0:00:06]}  Be8 {[%clk 0:00:02]} 28. Rfc1 {[%clk 0:00:06]}  Nc7 {[%clk 0:00:01]} 29. Nxe6 {[%clk 0:00:05]}  Nxe6 {[%clk 0:00:01]} 30. Rxc8 {[%clk 0:00:06]}  Rxc8 {[%clk 0:00:02]} 31. Rxc8 {[%clk 0:00:06]}  Kf7 {[%clk 0:00:02]} 32. Bd5 {[%clk 0:00:07]}  Ke7 {[%clk 0:00:02]} 33. Rxe8+ {[%clk 0:00:06]}  Kxe8 {[%clk 0:00:02]} 34. Bxe6 {[%clk 0:00:07]}  f5 {[%clk 0:00:03]} 35. d5 {[%clk 0:00:07]}  a5 {[%clk 0:00:02]} 36. a4 {[%clk 0:00:07]}  bxa4 {[%clk 0:00:02]} 37. bxa4 {[%clk 0:00:08]}  Be5 {[%clk 0:00:03]} 38. f3 {[%clk 0:00:08]}  f4 {[%clk 0:00:02]} 39. Bf2 {[%clk 0:00:08]}  h6 {[%clk 0:00:02]} 40. Kf1 {[%clk 0:00:09]}  g5 {[%clk 0:00:02]} 41. Ke2 {[%clk 0:00:10]}  h5 {[%clk 0:00:03]} 42. Kd3 {[%clk 0:00:11]}  g4 {[%clk 0:00:04]} 43. Ke4 {[%clk 0:00:11]}  Bd6 {[%clk 0:00:04]} 44. fxg4 {[%clk 0:00:11]}  hxg4 {[%clk 0:00:04]} 45. Bxg4 {[%clk 0:00:12]}  Ke7 {[%clk 0:00:05]} 46. Bd4 {[%clk 0:00:11]}  Kf7 {[%clk 0:00:05]} 47. Be5 {[%clk 0:00:12]}  Bc5 {[%clk 0:00:06]} 48. Bxf4 {[%clk 0:00:12]}  Kg6 {[%clk 0:00:07]} 49. Be6 {[%clk 0:00:12]}  Kh7 {[%clk 0:00:06]} 50. d6 {[%clk 0:00:12]}  Bb6 {[%clk 0:00:07]} 51. d7 {[%clk 0:00:12]}  Kg6 {[%clk 0:00:08]} 52. Bd6 {[%clk 0:00:12]}  Kf6 {[%clk 0:00:08]} 53. Kd5 {[%clk 0:00:12]}  Bd8 {[%clk 0:00:08]} 54. Bh3 {[%clk 0:00:11]}  Bb6 {[%clk 0:00:09]} 55. Kc6 {[%clk 0:00:11]}  Bd8 {[%clk 0:00:08]} 56. Bc7 {[%clk 0:00:11]}  Ke7 {[%clk 0:00:08]} 57. Bxd8+ {[%clk 0:00:10]}  Kxd8 {[%clk 0:00:09]} 58. Bg4 {[%clk 0:00:11]}  Ke7 {[%clk 0:00:09]} 59. Kc7 {[%clk 0:00:11]}  Kf7 {[%clk 0:00:10]} 60. d8=Q {[%clk 0:00:10]}  Kg7 {[%clk 0:00:10]} 61. Qd6 {[%clk 0:00:10]} 1-0

[Event "January 9 Early 2024"]
[Site "https://www.chess.com"]
[Date "2024.01.11"]
[Round "5"]
[White "Golubovic, Erik"]
[Black "Sharapov, Evgeny"]
[Result "0-1"]
[Board "244"]
[TimeControl "180+1"]
[WhiteFideId "14586908"]
[BlackFideId "14103133"]
[WhiteElo "2255"]
[BlackElo "2535"]
[WhiteTeam "CRO"]
[BlackTeam "UKR"]
[WhiteClock "0:00:02"]
[BlackClock "0:00:22"]

1. d4 {[%clk 0:03:00]}  Nf6 {[%clk 0:02:59]} 2. c4 {[%clk 0:03:00]}  e6 {[%clk 0:02:59]} 3. Nf3 {[%clk 0:03:01]}  Bb4+ {[%clk 0:02:58]} 4. Bd2 {[%clk 0:03:00]}  c5 {[%clk 0:02:59]} 5. Bxb4 {[%clk 0:02:58]}  cxb4 {[%clk 0:02:59]} 6. g3 {[%clk 0:02:58]}  O-O {[%clk 0:02:58]} 7. Bg2 {[%clk 0:02:58]}  d6 {[%clk 0:02:59]} 8. O-O {[%clk 0:02:58]}  Nbd7 {[%clk 0:02:59]} 9. a3 {[%clk 0:02:56]}  bxa3 {[%clk 0:02:59]} 10. Nxa3 {[%clk 0:02:53]}  a6 {[%clk 0:02:58]} 11. Qd3 {[%clk 0:02:51]}  Qc7 {[%clk 0:02:58]} 12. b4 {[%clk 0:02:33]}  e5 {[%clk 0:02:58]} 13. e4 {[%clk 0:02:28]}  b6 {[%clk 0:02:54]} 14. d5 {[%clk 0:02:27]}  Bb7 {[%clk 0:02:53]} 15. Rfc1 {[%clk 0:02:26]}  a5 {[%clk 0:02:51]} 16. Nb5 {[%clk 0:02:25]}  Qb8 {[%clk 0:02:51]} 17. Nd2 {[%clk 0:01:56]}  axb4 {[%clk 0:02:50]} 18. Rxa8 {[%clk 0:01:48]}  Bxa8 {[%clk 0:02:50]} 19. Rb1 {[%clk 0:01:44]}  Nc5 {[%clk 0:02:49]} 20. Qc2 {[%clk 0:01:42]}  Bb7 {[%clk 0:02:39]} 21. Rxb4 {[%clk 0:01:41]}  Ba6 {[%clk 0:02:38]} 22. Rb1 {[%clk 0:01:32]}  Bxb5 {[%clk 0:02:38]} 23. Rxb5 {[%clk 0:01:30]}  Qa7 {[%clk 0:02:38]} 24. Qb2 {[%clk 0:01:23]}  Rb8 {[%clk 0:02:37]} 25. Bf3 {[%clk 0:01:12]}  h6 {[%clk 0:02:36]} 26. Kg2 {[%clk 0:01:11]}  Kh7 {[%clk 0:02:31]} 27. h4 {[%clk 0:01:10]}  Ne8 {[%clk 0:02:23]} 28. Bg4 {[%clk 0:01:08]}  Nc7 {[%clk 0:02:22]} 29. h5 {[%clk 0:00:52]}  Nxb5 {[%clk 0:02:21]} 30. cxb5 {[%clk 0:00:47]}  Qa4 {[%clk 0:02:21]} 31. Qc3 {[%clk 0:00:32]}  Qd4 {[%clk 0:02:14]} 32. Qxd4 {[%clk 0:00:29]}  exd4 {[%clk 0:02:14]} 33. Nc4 {[%clk 0:00:30]}  d3 {[%clk 0:01:57]} 34. Kf3 {[%clk 0:00:30]}  g6 {[%clk 0:01:41]} 35. Ke3 {[%clk 0:00:25]}  Kg7 {[%clk 0:01:22]} 36. Nxd6 {[%clk 0:00:25]}  d2 {[%clk 0:01:09]} 37. Kxd2 {[%clk 0:00:24]}  Rd8 {[%clk 0:01:09]} 38. e5 {[%clk 0:00:21]}  Ne4+ {[%clk 0:00:54]} 39. Nxe4 {[%clk 0:00:20]}  Rxd5+ {[%clk 0:00:55]} 40. Ke3 {[%clk 0:00:19]}  Rxb5 {[%clk 0:00:53]} 41. f4 {[%clk 0:00:20]}  Rb3+ {[%clk 0:00:52]} 42. Kf2 {[%clk 0:00:20]}  b5 {[%clk 0:00:52]} 43. Be2 {[%clk 0:00:19]}  b4 {[%clk 0:00:52]} 44. hxg6 {[%clk 0:00:20]}  fxg6 {[%clk 0:00:51]} 45. Nc5 {[%clk 0:00:19]}  Rc3 {[%clk 0:00:49]} 46. Ne4 {[%clk 0:00:17]}  Rc2 {[%clk 0:00:47]} 47. Ke3 {[%clk 0:00:16]}  b3 {[%clk 0:00:48]} 48. Bd3 {[%clk 0:00:16]}  Rc1 {[%clk 0:00:45]} 49. Nd2 {[%clk 0:00:16]}  b2 {[%clk 0:00:44]} 50. Nb1 {[%clk 0:00:13]}  h5 {[%clk 0:00:42]} 51. Kf3 {[%clk 0:00:11]}  Rd1 {[%clk 0:00:39]} 52. Ke3 {[%clk 0:00:11]}  Rg1 {[%clk 0:00:38]} 53. Kf2 {[%clk 0:00:11]}  Rh1 {[%clk 0:00:36]} 54. Ke3 {[%clk 0:00:09]}  Rh3 {[%clk 0:00:34]} 55. Kf2 {[%clk 0:00:09]}  h4 {[%clk 0:00:34]} 56. Bf1 {[%clk 0:00:04]}  Rxg3 {[%clk 0:00:31]} 57. Be2 {[%clk 0:00:03]}  Rb3 {[%clk 0:00:27]} 58. Bf3 {[%clk 0:00:02]}  Rb4 {[%clk 0:00:25]} 59. Ke3 {[%clk 0:00:02]}  h3 {[%clk 0:00:25]} 60. Bh1 {[%clk 0:00:01]}  h2 {[%clk 0:00:25]} 61. Bg2 {[%clk 0:00:01]}  Ra4 {[%clk 0:00:23]} 62. Be4 {[%clk 0:00:01]}  Ra1 {[%clk 0:00:23]} 63. Kf2 {[%clk 0:00:02]}  Rxb1 {[%clk 0:00:22]} 0-1